bitfinex/quotes_ETHUSD_20260226
["timestamp","ask_amount","ask_price","bid_price","bid_amount"]
[1772114482415,0.66484188,2066.9,2066.5,1.20977498]
[1772114482604,0.66484188,2066.9,2066.4,4.83909992]
[1772114483013,0.66484188,2067.0,2066.4,5.44291663]
[1772114483728,0.66484188,2067.0,2066.3,1.81366918]
[1772114485230,0.66484188,2067.2,2066.4,0.60381671]
[1772114485701,0.66484188,2067.1,2066.4,0.60381671]
[1772114486919,0.66484188,2067.1,2066.3,0.59851633]
[1772114487928,0.66484188,2067.1,2066.2,1.2099165]
[1772114487929,0.61781029,2066.9,2066.2,1.2099165]
[1772114488135,0.61781029,2066.9,2066.1,1.80958112]
[1772114489609,0.61881029,2066.7,2066.1,1.80958112]
[1772114490043,1.82847018,2066.7,2066.1,1.80958112]
[1772114490331,0.61881029,2066.7,2066.1,1.80958112]
[1772114490631,1.82847039,2066.7,2066.2,0.59851633]
[1772114491130,0.61881029,2066.7,2066.1,1.21106479]
[1772114491331,0.61881029,2066.7,2066.1,1.80958112]
[1772114491629,0.61781029,2066.6,2066.1,1.80958112]
[1772114492527,0.001,2066.7,2066.2,0.59851633]
[1772114494052,0.001,2066.7,2066.3,1.20989207]
[1772114494258,0.001,2066.7,2066.3,1.8084084]
[1772114495532,0.61881029,2066.7,2066.3,1.20989207]
[1772114496537,0.61881029,2066.7,2066.2,4.83959421]
[1772114496936,0.61639056,2066.7,2066.2,4.83959421]
[1772114497230,0.61639056,2066.7,2066.3,0.59851633]
[1772114498326,0.63947043,2066.6,2066.2,1.20995063]
[1772114498727,0.63947043,2066.6,2066.2,1.81624122]
[1772114499039,0.63947043,2066.6,2066.1,1.81735091]
[1772114499654,0.63947043,2066.6,2066.1,1.21106032]
[1772114499857,0.63947043,2066.6,2066.2,0.60629059]
[1772114500151,0.63947043,2066.6,2066.1,1.21106032]
[1772114500152,0.63947043,2066.5,2066.1,0.0011]
[1772114501125,0.63947043,2066.5,2065.9,0.0011]
[1772114501126,0.63947043,2066.3,2065.9,0.0011]
[1772114501536,0.63947043,2066.3,2065.7,0.0011]
[1772114502457,0.63947043,2066.3,2066.0,0.0011]
[1772114502948,0.63947043,2066.3,2065.8,0.0011]
[1772114503144,0.63947043,2066.1,2065.8,0.0011]
[1772114503945,2.62747043,2066.1,2065.8,0.0011]
[1772114504344,1.989,2066.4,2065.9,0.60629059]
[1772114505351,3.83831033,2066.4,2065.9,1.81641665]
[1772114505554,3.83831033,2066.4,2065.9,1.81640981]
[1772114505956,1.989,2066.4,2065.9,1.21011922]
[1772114506158,1.84907872,2066.8,2066.2,0.60629059]
[1772114506356,0.63947043,2066.7,2066.2,0.60629059]
[1772114506868,1.988,2066.8,2066.2,0.60629059]
[1772114508235,3.19765602,2066.8,2066.2,1.81620733]
[1772114508436,3.83712645,2066.8,2066.2,0.60629059]
[1772114508661,0.63947043,2066.7,2065.9,1.21009822]
[1772114508863,0.63947043,2066.7,2065.9,1.81638881]
[1772114509066,2.62747043,2066.6,2065.9,1.81638881]
[1772114511382,1.20977498,2066.5,2065.9,1.81638881]
[1772114511967,0.63947043,2066.4,2065.8,1.21126]
[1772114512443,0.63947043,2066.4,2065.8,1.81755059]
[1772114512648,1.986,2066.6,2065.9,0.60629059]
[1772114513169,2.62547043,2066.7,2066.1,0.60629059]
[1772114513373,3.83513808,2066.7,2066.1,0.60629059]
[1772114513572,0.63947043,2066.6,2066.1,1.81629218]
[1772114514169,0.63947043,2066.6,2066.0,1.21002581]
[1772114514873,0.63947043,2066.6,2065.9,1.81637533]
[1772114515372,1.8492146,2066.6,2066.1,1.21000919]
[1772114515573,3.8352146,2066.6,2066.1,1.21000919]
[1772114515775,3.8352146,2066.6,2066.1,1.21110919]
[1772114515965,3.8362146,2066.6,2066.1,1.21110919]
[1772114516165,3.8362146,2066.6,2066.1,0.0011]
[1772114516977,0.59726506,2066.5,2066.1,0.0011]
[1772114518171,0.59726506,2066.3,2065.7,0.0011]
[1772114519399,0.59726506,2066.3,2065.7,1.21132839]
[1772114519905,0.59726506,2066.3,2065.7,0.0011]
[1772114520119,0.59726506,2066.1,2065.7,0.0011]
[1772114520490,6.36,2066.5,2065.7,0.0011]
[1772114520491,7.56981795,2066.5,2065.9,2.11751847]
[1772114520804,7.56981795,2066.5,2065.9,0.64014554]
[1772114520968,7.56978157,2066.5,2065.9,0.64014554]
[1772114521168,8.16704663,2066.5,2065.9,0.64014554]
[1772114522396,8.16704663,2066.5,2066.0,0.64014554]
[1772114522802,0.001,2066.6,2066.0,0.64014554]
[1772114523108,3.19872201,2066.6,2066.0,0.64014554]
[1772114523575,0.59726506,2066.2,2065.6,0.0011]
[1772114523766,0.59726506,2066.0,2065.4,0.0011]
[1772114523966,0.59726506,2066.0,2065.2,1.5201]
[1772114524172,0.59726506,2066.0,2065.2,0.0011]
[1772114524616,0.59726506,2065.8,2065.2,0.0011]
[1772114525303,0.59726506,2065.8,2065.2,0.64124554]
[1772114526488,3.79437193,2066.0,2065.3,1.21047789]
[1772114526688,3.79437193,2066.0,2065.3,1.85062343]
[1772114526894,3.79437193,2066.0,2065.4,0.64014554]
[1772114527379,3.79337193,2066.0,2065.4,0.64014554]
[1772114528031,3.79337193,2066.0,2065.4,0.64124554]
[1772114528523,0.59726506,2065.9,2065.2,0.0011]
[1772114528685,1.21018491,2065.8,2065.2,0.64124554]
[1772114528885,0.59726506,2065.7,2065.2,0.0011]
[1772114529085,0.59726506,2065.7,2065.2,0.64124554]
[1772114529310,1.21018491,2065.8,2065.2,0.64124554]
[1772114530885,0.59726506,2065.8,2065.1,0.0011]
[1772114531122,0.59726506,2065.8,2064.9,0.0011]
[1772114531628,0.62616417,2065.5,2064.9,0.0011]
[1772114531798,1.987,2065.4,2064.9,0.0011]
[1772114531984,1.987,2065.4,2064.9,1.25873935]
[1772114532186,7.33943145,2065.9,2065.0,0.04692978]
[1772114532410,2.61216417,2065.8,2065.0,0.04692978]
[1772114532793,3.82235412,2065.8,2065.2,0.04688289]
[1772114532995,1.21017429,2065.9,2065.2,0.04688289]
[1772114533228,3.82227639,2066.0,2065.2,0.04688289]
[1772114533637,3.82227639,2066.0,2064.8,6.31975344]
[1772114533638,0.62616417,2065.1,2064.2,0.04688289]
[1772114534040,1.41016417,2065.7,2064.8,0.04684085]
[1772114534533,0.62616417,2065.6,2064.8,0.04684085]
[1772114535036,1.83652485,2065.5,2064.8,1.25757969]
[1772114535235,1.83652485,2065.5,2064.8,0.04684085]
[1772114535432,1.83652485,2065.5,2064.8,1.2576066]
[1772114535613,1.83652485,2065.5,2064.8,1.25760774]
[1772114536136,1.83652485,2065.5,2064.8,1.25761155]
[1772114537049,1.83652485,2065.5,2064.8,0.04684085]
[1772114537338,1.83652485,2065.5,2064.8,1.25760653]
[1772114540341,0.62616417,2065.5,2064.8,1.25760653]
[1772114540635,0.62616417,2065.7,2064.9,0.04659756]
[1772114541144,1.83632823,2065.9,2065.1,0.0465557]
[1772114541441,1.83632823,2065.9,2065.2,1.2105365]
[1772114541606,0.62616417,2065.9,2065.2,1.2105365]
[1772114542224,1.83629687,2065.9,2065.2,1.2105365]
[1772114542539,1.47737293,2065.7,2065.0,0.0011]
[1772114542710,0.62616417,2065.6,2064.8,1.21181965]
[1772114543938,0.62616417,2065.4,2064.8,0.0011]
[1772114544316,0.62616417,2065.3,2064.8,0.0011]
[1772114545039,0.62616417,2065.3,2064.5,0.0011]
[1772114545241,0.62616417,2065.0,2064.5,0.0011]
[1772114546039,1.83686136,2065.0,2064.5,0.0011]
[1772114546314,0.63380362,2064.9,2064.5,0.0011]
[1772114548228,0.63380362,2064.7,2063.8,4.84541309]
[1772114548433,0.63380362,2064.7,2063.9,0.04624237]
[1772114549645,4.84282341,2065.0,2064.1,0.04620627]
[1772114549650,0.63380362,2065.0,2064.1,0.04620627]
[1772114550028,0.63380362,2065.0,2064.2,0.0461681]
[1772114550429,0.63380362,2065.0,2064.3,4.24360531]
[1772114550748,0.63380362,2065.2,2064.3,4.24360531]
[1772114550952,0.63380362,2065.2,2064.4,0.04613054]
[1772114552194,4.84098973,2065.7,2064.5,0.04609357]
[1772114552195,0.63380362,2065.6,2064.5,0.04609357]
[1772114552320,1.21033472,2065.6,2064.6,1.2108883]
[1772114552645,0.63380362,2065.5,2064.6,1.2108883]
[1772114553526,0.63380362,2065.5,2064.6,1.25695184]
[1772114554252,0.63380362,2065.5,2064.7,0.0011]
[1772114554549,0.63380362,2065.3,2064.7,0.0011]
[1772114556672,0.63380362,2065.1,2064.7,0.0011]
[1772114557270,0.63380362,2065.1,2064.5,0.0011]
[1772114559273,1.21065375,2065.0,2064.5,0.0011]
[1772114559481,0.63765537,2064.8,2064.2,0.0011]
[1772114560859,0.63765537,2064.8,2064.2,1.21221561]
[1772114561162,0.63765537,2064.8,2064.2,1.21221899]
[1772114561483,0.63765537,2064.6,2064.2,0.0011]
[1772114563491,1.21094696,2064.5,2064.2,0.0011]
[1772114563692,0.63765537,2064.4,2064.2,0.0011]
[1772114564476,0.63765537,2065.0,2064.2,0.0011]
[1772114565871,0.63765537,2064.8,2064.2,0.0011]
[1772114566765,0.63765537,2064.8,2064.4,0.0011]
[1772114566969,0.63765537,2064.8,2064.2,0.0011]
[1772114567890,0.63765537,2064.6,2064.2,0.0011]
[1772114570097,0.63765537,2064.4,2064.1,0.0011]
[1772114570805,0.63765537,2064.4,2063.5,0.00787866]
[1772114570993,2.07183406,2064.0,2062.4,0.04768845]
[1772114571195,0.63765537,2064.3,2063.3,0.04768845]
[1772114571401,1.21094696,2064.5,2063.6,0.04768845]
[1772114571572,0.63765537,2064.6,2063.6,0.04768845]
[1772114571773,1.8485481,2064.6,2063.6,0.04768845]
[1772114571971,1.21088934,2064.6,2063.8,0.60717733]
[1772114572173,0.63765537,2064.6,2063.8,0.60717733]
[1772114572889,1.84845867,2064.8,2063.8,0.60717733]
[1772114573286,0.63765537,2064.7,2063.8,0.60717733]
[1772114574470,1.2108883,2064.6,2063.9,1.81847632]
[1772114574752,1.2108883,2064.6,2063.7,1.21136237]
[1772114574869,0.63765537,2064.5,2063.7,3.3235397]
[1772114576171,0.63765537,2064.5,2063.8,0.61269486]
[1772114577017,1.84865368,2064.5,2063.8,1.82399404]
[1772114577513,1.21099831,2064.5,2063.9,0.61269486]
[1772114577987,1.84568213,2064.7,2063.9,0.61269486]
[1772114578194,1.84565409,2064.8,2063.9,0.61269486]
[1772114578723,0.63482959,2064.7,2063.9,0.61269486]
[1772114579521,1.8456968,2064.7,2064.0,1.21124031]
[1772114579914,0.63482959,2064.6,2064.0,1.21124031]
[1772114580821,0.63482959,2064.6,2064.1,0.0011]
[1772114581001,0.63582959,2064.6,2064.1,0.0011]
[1772114581811,1.84675729,2064.6,2064.1,0.0011]
[1772114583244,0.001,2064.6,2064.1,0.61379486]
[1772114583596,0.63482959,2065.0,2064.2,0.61269486]
[1772114583897,1.84532714,2065.3,2064.4,0.61269486]
[1772114584097,0.001,2065.4,2064.5,0.61269486]
[1772114584299,1.21141991,2065.4,2064.5,0.61269486]
[1772114585144,0.63482959,2065.3,2064.3,1.21106428]
[1772114585432,0.63482959,2065.3,2063.9,0.0011]
[1772114585433,0.63482959,2064.6,2063.9,0.0011]
[1772114585598,0.63482959,2064.6,2063.9,1.82508894]
[1772114585798,1.84575023,2064.6,2063.9,1.82508894]
[1772114586116,1.84564575,2064.8,2064.0,0.61269486]
[1772114586495,0.63482959,2064.7,2064.0,0.61269486]
[1772114587125,0.63482959,2064.7,2063.9,2.71639449]
[1772114587322,0.63482959,2064.7,2064.0,0.61269486]
[1772114587502,1.84564575,2064.8,2064.0,0.61269486]
[1772114587897,1.84564575,2064.8,2064.1,1.82387648]
[1772114589426,4.84262106,2065.0,2064.2,0.02846187]
[1772114589427,0.63482959,2065.0,2064.2,0.02846187]
[1772114590001,0.63482959,2065.0,2064.3,1.23919268]
[1772114590500,1.84549805,2065.0,2064.3,1.23919268]
[1772114591104,1.21066846,2065.0,2064.3,1.21106428]
[1772114591310,1.21066846,2065.0,2064.0,2.71524031]
[1772114591311,0.63482959,2064.9,2064.0,2.71524031]
[1772114592122,0.63482959,2064.7,2064.0,1.21124031]
[1772114593512,0.63482959,2064.7,2064.3,0.0011]
[1772114594214,1.21177101,2064.8,2064.3,0.02793627]
[1772114594215,0.001,2064.8,2064.3,0.02793627]
[1772114595338,0.001,2064.8,2064.4,1.503]
[1772114596421,0.001,2064.8,2064.5,1.21094696]
[1772114597745,0.001,2064.8,2064.3,0.0011]
[1772114597746,0.63482959,2064.7,2064.3,1.21215515]
[1772114598944,0.63482959,2064.7,2064.3,0.0011]
[1772114599541,0.001,2064.8,2064.3,0.0011]
[1772114600015,0.001,2064.8,2064.3,0.02611036]
[1772114600827,0.001,2064.8,2064.4,1.21100561]
[1772114601926,0.001,2064.8,2064.5,1.505]
[1772114603551,0.001,2064.8,2064.6,1.2108883]
[1772114603850,0.001,2065.4,2064.7,0.02386054]
[1772114605154,0.63582959,2065.4,2064.7,0.02386054]
[1772114605649,0.63582959,2065.4,2064.8,1.21077101]
[1772114606350,1.84624931,2065.4,2064.8,1.21077101]
[1772114606522,0.62883723,2065.3,2064.6,1.505]
[1772114606927,0.62883723,2065.3,2064.7,0.0011]
[1772114607139,0.62883723,2065.1,2064.7,0.0011]
[1772114608159,0.001,2065.2,2064.7,0.02360542]
[1772114608560,0.001,2065.4,2064.8,0.02150542]
[1772114611045,0.001,2065.4,2064.9,1.21071238]
[1772114611624,0.001,2065.4,2065.0,1.507]
[1772114612114,0.001,2065.4,2065.0,1.52748834]
[1772114612319,0.62933723,2065.7,2065.1,0.02048834]
[1772114612521,0.08192,2065.9,2065.3,0.02048834]
[1772114612740,0.08192,2066.0,2065.5,0.02048834]
[1772114612933,0.08192,2066.0,2065.6,1.21030209]
[1772114613130,0.63033723,2066.3,2065.6,1.21030209]
[1772114613344,0.63033723,2066.3,2065.6,1.23052856]
[1772114613551,0.001,2066.3,2065.7,0.02022647]
[1772114614616,1.84023005,2066.3,2065.6,1.21030209]
[1772114614820,0.63033723,2066.3,2065.6,1.23003896]
[1772114615124,0.08192,2066.2,2065.6,1.23003896]
[1772114618132,0.62933723,2065.9,2065.5,1.509]
[1772114618865,0.62933723,2065.9,2065.3,1.509]
[1772114619231,0.62933723,2065.8,2065.3,1.509]
[1772114619793,0.62933723,2065.8,2065.2,1.21049304]
[1772114619954,0.62933723,2065.8,2065.2,2.71949304]
[1772114620534,0.62933723,2065.8,2065.3,0.0011]
[1772114621361,0.62933723,2065.6,2065.0,0.0011]
[1772114622334,4.840974,2065.8,2065.0,0.02006679]
[1772114622335,0.62878723,2065.8,2065.0,0.02006679]
[1772114622642,0.62878723,2065.8,2065.2,1.47892598]
[1772114623358,0.62878723,2065.8,2065.3,1.21047789]
[1772114623778,0.62878723,2065.7,2065.1,6.35126755]
[1772114625649,0.62878723,2065.9,2065.2,0.01833407]
[1772114629760,0.62878723,2065.7,2065.1,2.73686937]
[1772114630980,0.62878723,2065.7,2065.1,2.71956321]
[1772114631598,4.84173966,2066.0,2065.1,2.71956321]
[1772114631599,0.62978723,2066.0,2065.3,0.0171068]
[1772114632384,0.62978723,2066.0,2065.4,1.22733565]
[1772114632587,0.62878723,2065.9,2065.1,1.22751149]
[1772114633791,0.62878723,2065.9,2065.2,1.52673035]
[1772114634165,0.62878723,2065.9,2065.3,0.0011]
[1772114634393,0.001,2065.7,2065.3,0.0011]
[1772114634594,0.001,2065.7,2065.3,1.21157789]
[1772114634825,0.001,2065.7,2065.3,1.22811598]
[1772114636994,0.001,2065.7,2065.3,1.21157789]
[1772114637488,0.62978723,2065.7,2065.3,1.21157789]
[1772114640673,0.62878723,2065.6,2065.3,0.0011]
[1772114640870,0.62878723,2065.5,2065.2,1.51]
[1772114641076,0.57616771,2065.6,2065.2,2.72053017]
[1772114641292,0.57716771,2065.7,2065.2,3.31078591]
[1772114641495,0.001,2065.7,2065.3,0.59025574]
[1772114642014,0.001,2066.0,2065.4,0.59025574]
[1772114642188,0.57616771,2066.2,2065.6,0.59025574]
[1772114642502,0.57616771,2066.2,2065.7,0.59025574]
[1772114643377,0.57616771,2066.1,2065.7,1.8004979]
[1772114643606,0.57616771,2066.2,2065.7,1.8004979]
[1772114643981,0.57616771,2066.2,2065.7,1.21024216]
[1772114644672,0.57616771,2066.2,2065.6,6.35720589]
[1772114644673,0.57616771,2066.2,2065.6,2.72628264]
[1772114645278,0.001,2066.3,2065.9,1.80038207]
[1772114646614,0.001,2066.3,2066.0,1.517]
[1772114647208,0.16752472,2066.9,2066.1,0.59025574]
[1772114647419,0.16752472,2066.9,2066.3,0.59025574]
[1772114647714,0.16752472,2067.1,2066.5,0.59025574]
[1772114647892,0.16752472,2067.1,2066.4,1.518]
[1772114648209,0.16752472,2067.1,2066.4,2.10825574]
[1772114648781,0.16752472,2067.1,2066.5,1.518]
[1772114649297,0.1689242,2066.9,2066.3,1.518]
[1772114650682,0.1689242,2066.9,2066.3,2.10825574]
[1772114650983,0.1689242,2066.9,2066.3,1.518]
[1772114651802,0.17029111,2066.8,2066.3,2.72783852]
[1772114652105,1.38053532,2066.9,2066.4,0.59025574]
[1772114652483,0.17096252,2066.8,2066.3,2.72783852]
[1772114653311,0.17096252,2066.8,2066.3,2.72788454]
[1772114654183,0.17228301,2066.7,2066.3,1.518]
[1772114654412,0.17228301,2066.7,2066.2,1.517]
[1772114654590,0.17228301,2066.7,2065.9,4.84142382]
[1772114654591,0.17228301,2066.7,2065.9,1.21121531]
[1772114654790,0.17228301,2066.7,2065.9,1.80147105]
[1772114655982,0.17228301,2066.7,2066.0,0.59025574]
[1772114656584,1.38329942,2066.6,2066.0,1.80028994]
[1772114658185,0.17484216,2066.5,2066.0,0.59025574]
[1772114658690,1.38467568,2066.4,2066.0,0.59025574]
[1772114659695,1.38467568,2066.4,2065.9,0.0011]
[1772114659696,0.17546078,2066.3,2065.9,0.0011]
[1772114660822,1.38541066,2066.3,2065.9,0.0011]
[1772114661322,0.17668902,2066.2,2065.9,0.0011]
[1772114662824,1.38665892,2066.2,2065.9,0.0011]
[1772114663122,0.17668902,2066.2,2065.9,0.0011]
[1772114663320,1.38664517,2066.2,2065.9,0.0011]
[1772114663995,0.001,2066.4,2065.9,0.59135574]
[1772114665007,0.001,2066.4,2066.0,1.21006776]
[1772114665727,0.001,2066.4,2066.0,1.8003235]
[1772114666705,0.001,2066.4,2066.1,0.62823399]
[1772114667027,0.001,2066.4,2066.1,1.83819047]
[1772114667418,0.001,2066.4,2066.2,0.62823399]
[1772114668998,0.001,2066.4,2066.2,1.83818182]
[1772114669510,0.001,2066.4,2066.2,0.62823399]
[1772114670019,0.001,2066.4,2066.2,1.8381565]
[1772114670327,0.001,2066.4,2066.2,0.62823399]
[1772114670523,3.32098262,2066.9,2066.3,0.62823399]
[1772114670728,0.18339834,2066.8,2066.3,0.62823399]
[1772114671022,1.39359445,2066.7,2066.3,0.62823399]
[1772114672429,0.001,2066.4,2066.3,0.62823399]
[1772114673017,0.001,2066.4,2066.2,1.21104831]
[1772114673397,0.001,2066.4,2066.2,0.0011]
[1772114673795,0.001,2066.4,2066.2,1.21104206]
[1772114674026,0.001,2066.4,2066.2,0.0011]
[1772114674201,0.001,2066.4,2066.2,1.21104443]
[1772114674599,0.001,2066.4,2066.2,1.83927842]
[1772114677130,0.18604688,2066.7,2066.2,1.83927842]
[1772114677501,0.18755458,2066.9,2066.4,0.5940022]
[1772114677713,0.18755458,2067.1,2066.4,0.5940022]
[1772114679620,0.18755458,2067.1,2066.5,1.521]
[1772114680507,0.18901293,2067.2,2066.6,0.5940022]
[1772114681434,0.18949601,2067.2,2066.6,0.5940022]
[1772114682103,0.18996306,2067.4,2066.6,0.5940022]
[1772114682320,1.39922023,2067.4,2066.8,0.5940022]
[1772114682529,1.39921607,2067.4,2066.9,1.80354305]
[1772114682852,0.19042109,2067.4,2066.7,0.5940022]
[1772114683018,0.19042109,2067.4,2066.6,2.73071445]
[1772114683349,0.19042109,2067.4,2066.6,3.32471665]
[1772114683552,0.19042109,2067.4,2066.7,0.5940022]
[1772114685222,1.40062958,2067.3,2066.7,0.5940022]
[1772114685542,0.19132276,2067.3,2066.8,0.5940022]
[1772114685792,1.40059836,2067.4,2066.8,0.5940022]
[1772114686115,0.001,2067.2,2066.8,0.5940022]
[1772114687383,0.001,2067.2,2066.9,1.20954085]
[1772114687527,0.001,2067.2,2066.9,1.80354305]
[1772114688048,0.001,2067.2,2067.0,0.5940022]
[1772114688239,0.001,2067.5,2067.0,0.5940022]
[1772114688433,0.001,2067.5,2066.7,1.80364806]
[1772114688434,0.19264909,2067.4,2066.7,1.80364806]
[1772114689844,0.19264909,2067.4,2066.5,0.5951022]
[1772114689845,0.19351075,2067.2,2066.5,0.5951022]
[1772114690053,0.19351075,2067.2,2066.5,1.8048697]
[1772114690431,0.19351075,2067.2,2066.5,0.5951022]
[1772114690631,0.19351075,2067.2,2066.5,1.80487101]
[1772114691031,0.19351075,2067.2,2066.5,0.5951022]
[1772114692654,0.1943525,2067.0,2066.5,0.0011]
[1772114695066,0.19556664,2066.8,2066.3,0.0011]
[1772114695221,0.19556664,2066.8,2066.3,1.21098589]
[1772114695427,0.19556664,2066.8,2066.3,1.21097746]
[1772114695765,0.19395678,2067.0,2066.4,0.5940022]
[1772114697550,0.19295048,2066.9,2066.3,0.0011]
[1772114698630,0.19295048,2066.9,2066.3,0.60191457]
[1772114699628,1.40157639,2066.8,2066.3,0.60191457]
[1772114699828,1.40157639,2066.8,2066.7,0.0011]
[1772114700259,0.19150398,2066.7,2066.3,0.0011]
[1772114701430,1.21048283,2067.0,2066.4,0.60081457]
[1772114701626,1.21048546,2067.0,2066.5,1.20977498]
[1772114701860,1.21048546,2067.0,2066.5,1.81058955]
[1772114702061,0.001,2067.0,2066.5,1.81058955]
[1772114703459,0.19000048,2067.0,2066.5,0.60081457]
[1772114703663,0.19000048,2067.0,2066.4,1.20982797]
[1772114703664,0.19000048,2067.0,2066.3,0.0011]
[1772114703871,0.18900048,2066.8,2066.3,0.0011]
[1772114705862,1.39774207,2066.7,2066.3,0.0011]
[1772114707246,0.18719257,2066.6,2066.3,0.0011]
[1772114707744,0.18719257,2066.6,2066.2,0.0011]
[1772114708269,1.20977498,2066.5,2066.2,0.0011]
[1772114708869,1.3954381,2066.5,2066.2,0.0011]
[1772114712065,1.3954381,2066.5,2066.4,0.0011]
[1772114713567,0.18355625,2066.4,2065.9,0.0011]
[1772114713769,0.27711354,2066.3,2065.9,0.0011]
[1772114714778,0.27711354,2066.3,2065.9,0.60191457]
[1772114716187,1.48704445,2066.3,2065.9,0.60191457]
[1772114716560,0.27611551,2066.2,2065.7,0.0011]
[1772114717461,0.27611551,2066.2,2065.4,0.0011]
[1772114717462,0.27469041,2065.8,2065.4,0.0011]
[1772114717785,0.27469041,2065.7,2065.1,0.60081457]
[1772114718081,0.27437979,2065.5,2065.0,0.0011]
[1772114718280,0.27437979,2065.5,2065.0,0.60191457]
[1772114718481,1.21030209,2065.6,2065.0,0.60191457]
[1772114718781,0.27437979,2065.5,2065.0,0.0011]
[1772114720883,0.27344555,2065.3,2065.0,0.0011]
[1772114721086,0.27344555,2065.1,2064.5,0.0011]
[1772114722071,3.98628283,2065.2,2063.7,0.60081457]
[1772114722072,0.27314152,2064.5,2063.7,0.60081457]
[1772114722365,0.27314152,2065.1,2063.8,0.60081457]
[1772114722692,0.784,2065.0,2063.9,0.60081457]
[1772114723059,0.784,2065.0,2064.1,0.60081457]
[1772114724280,1.99466355,2065.0,2064.1,0.60081457]
[1772114724488,0.784,2065.0,2064.7,0.0011]
[1772114724877,2.06728283,2064.8,2064.0,0.60081457]
[1772114725087,2.26691782,2065.0,2064.5,0.0011]
[1772114726192,1.99465728,2065.0,2064.5,0.0011]
[1772114726785,0.784,2065.0,2064.5,0.0011]
[1772114727095,1.921,2065.4,2064.7,0.61171308]
[1772114727865,3.1314214,2065.4,2064.7,0.61171308]
[1772114728059,1.21033232,2065.6,2064.7,0.61171308]
[1772114728262,1.21033232,2065.6,2064.5,0.61281308]
[1772114728263,0.27111571,2065.1,2064.5,0.61281308]
[1772114728563,1.417,2065.2,2064.4,0.61171308]
[1772114728987,1.21041928,2065.4,2064.6,0.61171308]
[1772114729462,1.81969702,2065.4,2064.6,0.61171308]
[1772114729970,0.60927774,2065.3,2064.6,0.61171308]
[1772114732438,1.2105365,2065.2,2064.6,0.61171308]
[1772114732568,1.81981424,2065.2,2064.4,1.82268025]
[1772114732762,1.81981424,2065.2,2064.4,0.61171308]
[1772114732963,0.60927774,2065.1,2064.4,0.61171308]
[1772114733469,0.60927774,2065.1,2064.2,0.61281308]
[1772114733860,0.60927774,2065.1,2064.2,0.0011]
[1772114734481,1.21065375,2065.0,2064.2,0.0011]
[1772114734688,0.60927774,2064.9,2064.2,0.0011]
[1772114736292,1.21065375,2065.0,2064.2,0.61281308]
[1772114736490,3.12957608,2065.2,2064.3,1.21106428]
[1772114736697,3.12957608,2065.2,2064.4,0.61171308]
[1772114737971,1.919,2065.2,2064.4,0.61171308]
[1772114738405,3.12953979,2065.2,2064.4,0.61171308]
[1772114738577,3.12953979,2065.2,2064.6,0.61746499]
[1772114738977,0.001,2065.0,2064.6,0.61746499]
[1772114740679,0.001,2065.0,2064.7,1.21082966]
[1772114741685,0.001,2065.0,2064.6,1.82830703]
[1772114743918,0.001,2065.0,2064.6,0.61746499]
[1772114744214,0.001,2065.0,2064.6,1.82833934]
[1772114745216,0.001,2065.0,2064.5,1.82839299]
[1772114745600,0.001,2065.0,2064.6,0.61746499]
[1772114745798,1.914,2065.7,2064.7,0.61746499]
[1772114746117,1.81694144,2065.9,2064.9,0.61746499]
[1772114746800,1.81694144,2065.9,2065.1,0.61746499]
[1772114748793,1.81694144,2065.9,2065.2,1.2105365]
[1772114748993,1.81694144,2065.9,2065.2,1.82800149]
[1772114749217,0.60678164,2065.9,2065.3,0.61746499]
[1772114749416,1.81692849,2065.9,2065.3,0.61746499]
[1772114750223,1.81692849,2065.9,2065.1,1.21056027]
[1772114750521,1.81692849,2065.9,2065.2,0.61746499]
[1772114750723,1.81690862,2065.9,2065.2,0.61746499]
[1772114750922,1.81690862,2065.9,2065.3,1.82794288]
[1772114751704,1.81690862,2065.9,2065.3,0.61746499]
[1772114752024,0.001,2065.7,2065.3,0.61746499]
[1772114755322,0.001,2065.7,2065.3,1.82793152]
[1772114755829,0.001,2065.7,2065.3,0.61746499]
[1772114755997,0.63054505,2065.6,2064.8,1.507]
[1772114756320,0.001,2065.7,2064.7,0.60558574]
[1772114756321,0.63054505,2065.3,2064.7,0.60558574]
[1772114756727,3.75192896,2065.5,2064.9,1.21071238]
[1772114756920,3.75192896,2065.5,2064.8,1.81630895]
[1772114757428,3.75192896,2065.5,2064.8,0.60558573]
[1772114757625,0.63054505,2065.3,2064.7,1e-08]
[1772114758107,3.12138391,2065.5,2064.4,0.0011]
[1772114758108,0.63054505,2065.0,2064.4,0.0011]
[1772114758508,0.63054505,2064.8,2064.4,0.0011]
[1772114758903,1.21082966,2064.7,2064.4,0.0011]
[1772114759103,0.63054505,2064.6,2064.4,0.0011]
[1772114759308,6.75331864,2064.9,2064.4,0.0011]
[1772114759309,3.75130528,2064.9,2064.4,0.0011]
[1772114760495,0.63054505,2064.8,2064.4,0.0011]
[1772114760699,0.63054505,2064.6,2064.2,0.0011]
[1772114760899,0.63054505,2064.7,2064.2,0.0011]
[1772114761102,1.84141875,2064.7,2064.2,0.0011]
[1772114763327,1.2108737,2064.7,2064.2,0.60668573]
[1772114763528,1.21068684,2065.0,2064.2,0.60668573]
[1772114763734,6.75693915,2065.3,2064.2,0.60668573]
[1772114763735,4.84227983,2065.2,2064.2,0.60668573]
[1772114764031,0.63054505,2065.1,2064.4,0.60668573]
[1772114765036,1.21030209,2065.6,2064.4,0.60668573]
[1772114765325,1.84084714,2065.6,2064.4,0.60668573]
[1772114765526,1.84084714,2065.6,2064.6,0.60558573]
[1772114766024,0.63054505,2065.1,2064.4,1.81766547]
[1772114766407,0.63054505,2065.1,2064.4,1.21207974]
[1772114766730,0.63054505,2065.1,2064.5,0.60558573]
[1772114767448,1.916,2065.7,2064.7,0.60558573]
[1772114767925,3.12624969,2065.7,2064.7,0.60558573]
[1772114768831,1.916,2065.7,2064.7,0.60558573]
[1772114769526,1.916,2065.7,2064.9,0.60558573]
[1772114769923,3.12624585,2065.7,2064.9,0.60558573]
[1772114770229,1.916,2065.7,2064.9,0.60558573]
[1772114770431,3.12624469,2065.7,2064.9,0.60558573]
[1772114772334,3.12624469,2065.7,2065.1,0.60558573]
[1772114774938,3.12624469,2065.7,2065.1,1.81614534]
[1772114775738,0.001,2065.5,2065.1,1.81614534]
[1772114776031,0.001,2065.7,2065.2,0.60558573]
[1772114776434,0.001,2065.9,2065.3,0.60558573]
[1772114776638,0.001,2065.9,2065.4,0.60558573]
[1772114776838,0.001,2065.9,2065.6,0.60558573]
[1772114777315,1.20986797,2066.4,2065.6,0.60558573]
[1772114777316,3.75135918,2066.5,2065.6,0.60558573]
[1772114777523,3.12081413,2066.5,2065.7,0.60558573]